bitfinex/quotes_SOLUSD_20230703
["timestamp","ask_amount","ask_price","bid_price","bid_amount"]
[1688347944118,77.582,19.489,19.48,21.714]
[1688347944318,21.705,19.489,19.48,21.714]
[1688347944729,21.703,19.49,19.48,43.564]
[1688347944920,55.862,19.495,19.481,55.0]
[1688347945117,21.7,19.493,19.484,21.709]
[1688347945429,21.7,19.493,19.48,21.85]
[1688347945430,21.7,19.493,19.48,43.564]
[1688347945832,21.7,19.493,19.48,21.85]
[1688347946023,99.3992,19.499,19.473,10.83719922]
[1688347946024,21.707,19.487,19.479,21.715]
[1688347947475,55.861,19.495,19.479,123.722]
[1688347947643,21.706,19.487,19.478,21.716]
[1688347947945,21.706,19.487,19.479,21.715]
[1688347948949,21.706,19.487,19.478,21.716]
[1688347950946,21.706,19.487,19.472,85.925]
[1688347951240,21.706,19.487,19.473,55.0]
[1688347951431,21.706,19.487,19.474,30.0]
[1688347951631,21.706,19.487,19.475,55.0]
[1688347952127,21.706,19.487,19.477,21.717]
[1688347953056,21.706,19.487,19.47,32.69719922]
[1688347953247,21.706,19.487,19.471,51.723]
[1688347953546,21.706,19.487,19.471,30.0]
[1688347953547,179.605,19.482,19.471,30.0]
[1688347953726,179.605,19.482,19.462,55.952]
[1688347953927,179.651,19.477,19.46,21.84]
[1688347954147,179.651,19.477,19.461,30.0]
[1688347954333,179.651,19.477,19.463,21.732]
[1688347955048,77.631,19.477,19.463,21.732]
[1688347955231,107.631,19.477,19.463,21.732]
[1688347955549,77.631,19.477,19.463,21.732]
[1688347957238,77.631,19.477,19.466,21.729]
[1688347957628,77.631,19.477,19.46,21.84]
[1688347957830,77.631,19.477,19.461,55.0]
[1688347958244,77.631,19.477,19.463,21.733]
[1688347958447,77.631,19.477,19.462,21.734]
[1688347959432,77.65,19.472,19.462,21.734]
[1688347959635,21.723,19.472,19.462,21.734]
[1688347961150,55.91,19.478,19.463,55.0]
[1688347961348,157.959,19.48,19.467,21.728]
[1688347961349,21.724,19.472,19.467,21.728]
[1688347961846,113.8532,19.481,19.467,21.728]
[1688347961847,21.722,19.473,19.467,21.728]
[1688347962043,21.722,19.473,19.468,55.0]
[1688347962249,21.722,19.473,19.468,76.727]
[1688347962630,21.722,19.473,19.467,21.728]
[1688347963135,21.721,19.474,19.467,21.728]
[1688347966654,21.721,19.474,19.466,21.729]
[1688347966948,77.641,19.474,19.462,10.83719922]
[1688347967151,179.674,19.474,19.453,55.98]
[1688347967461,179.739,19.467,19.456,21.74]
[1688347967644,179.739,19.467,19.45,77.817]
[1688347967851,179.739,19.467,19.454,21.743]
[1688347969644,179.739,19.467,19.453,21.743]
[1688347970355,179.739,19.467,19.447,10.83719922]
[1688347970561,179.739,19.467,19.449,21.748]
[1688347970728,179.806,19.46,19.449,21.748]
[1688347971352,179.806,19.46,19.443,56.007]
[1688347971537,21.743,19.455,19.446,21.752]
[1688347972930,21.743,19.455,19.445,21.753]
[1688347973451,21.743,19.455,19.439,56.019]
[1688347973660,21.743,19.455,19.442,21.756]
[1688347977157,21.743,19.455,19.443,55.0]
[1688347977469,21.743,19.455,19.446,21.751]
[1688347979138,21.743,19.455,19.44,56.016]
[1688347979943,21.743,19.455,19.434,10.83719922]
[1688347980142,21.743,19.455,19.444,21.754]
[1688347982058,21.743,19.455,19.429,474.62581447]
[1688347982059,75.0,19.454,19.438,21.76]
[1688347982247,179.903,19.45,19.437,21.762]
[1688347982650,189.70493841,19.45,19.437,21.762]
[1688347983461,189.70493841,19.45,19.436,21.763]
[1688347983761,9.83991939,19.449,19.43,22.06]
[1688347984065,179.903,19.45,19.436,21.763]
[1688347984066,21.755,19.444,19.436,21.763]
[1688347984252,102.163,19.45,19.436,21.763]
[1688347984253,9.83991939,19.45,19.436,77.793]
[1688347984560,55.977,19.455,19.44,77.773]
[1688347984858,21.747,19.451,19.44,77.773]
[1688347985159,21.745,19.452,19.444,21.754]
[1688347985946,21.745,19.452,19.443,21.755]
[1688347987068,55.0,19.451,19.428,46.48518169]
[1688347987266,77.752,19.447,19.436,21.763]
[1688347988958,77.752,19.447,19.434,21.765]
[1688347989473,133.789,19.447,19.434,21.765]
[1688347990165,133.789,19.447,19.428,10.83719922]
[1688347990166,133.789,19.447,19.431,21.769]
[1688347990346,133.789,19.447,19.431,77.813]
[1688347990549,133.789,19.447,19.436,21.763]
[1688347991775,133.789,19.447,19.435,21.764]
[1688347993068,133.789,19.447,19.424,102.29]
[1688347993069,55.0,19.446,19.424,102.29]
[1688347993270,179.988,19.44,19.429,21.77]
[1688347996162,93.4729,19.439,19.42,22.25]
[1688347996469,21.765,19.435,19.424,77.84]
[1688347996662,56.02,19.44,19.424,77.84]
[1688347996663,21.762,19.437,19.424,77.84]
[1688347997761,21.762,19.437,19.425,55.0]
[1688347998058,21.762,19.437,19.428,21.772]
[1688348000570,21.762,19.437,19.422,10.83719922]
[1688348001278,21.762,19.437,19.424,21.776]
[1688348002465,55.0,19.436,19.424,21.776]
[1688348002664,21.762,19.437,19.424,21.776]
[1688348002665,21.767,19.433,19.424,77.84]
[1688348003560,21.767,19.433,19.424,21.776]
[1688348008685,21.767,19.433,19.423,21.778]
[1688348008893,21.767,19.433,19.417,102.33]
[1688348009189,21.767,19.433,19.418,20.0]
[1688348010181,21.767,19.433,19.422,21.778]
[1688348011484,21.767,19.433,19.422,77.848]
[1688348012397,25.35370689,19.437,19.422,77.848]
[1688348012619,25.35370689,19.437,19.418,20.0]
[1688348012620,25.35370689,19.437,19.423,55.0]
[1688348012894,25.35370689,19.437,19.418,20.0]
[1688348012895,77.79,19.437,19.427,21.773]
[1688348014386,77.79,19.437,19.426,21.774]
[1688348015093,77.79,19.437,19.422,56.07]
[1688348015094,55.0,19.436,19.425,21.775]
[1688348015396,21.767,19.433,19.425,21.775]
[1688348015891,21.767,19.433,19.423,21.777]
[1688348019980,21.767,19.433,19.424,55.0]
[1688348020283,21.767,19.433,19.426,21.774]
[1688348021900,21.767,19.433,19.424,111.064]
[1688348021901,21.762,19.438,19.43,21.77]
[1688348022096,21.762,19.437,19.43,21.77]
[1688348023491,21.762,19.437,19.424,65.83719922]
[1688348025192,21.762,19.437,19.428,21.772]
[1688348025710,51.71,19.457,19.429,75.0]
[1688348025907,21.752,19.447,19.435,77.796]
[1688348026207,21.752,19.447,19.439,21.76]
[1688348027186,21.752,19.447,19.442,21.756]
[1688348027603,21.749,19.449,19.442,21.756]
[1688348027807,21.748,19.45,19.442,21.756]
[1688348028189,21.745,19.452,19.443,55.0]
[1688348028390,104.90411939,19.458,19.445,21.752]
[1688348028682,21.746,19.452,19.445,21.752]
[1688348032701,21.746,19.452,19.443,55.0]
[1688348033689,21.746,19.452,19.431,116.15123828]
[1688348034010,21.746,19.452,19.439,102.212]
[1688348034206,21.746,19.452,19.44,55.0]
[1688348034400,21.746,19.452,19.443,21.755]
[1688348041109,21.746,19.452,19.439,21.76]
[1688348041110,21.75,19.448,19.439,21.76]
[1688348041293,21.75,19.448,19.44,21.758]
[1688348041914,77.745,19.448,19.439,21.76]
[1688348042519,77.745,19.448,19.438,21.761]
[1688348042706,77.745,19.448,19.432,98.7574]
[1688348043212,77.745,19.448,19.435,21.764]
[1688348044516,77.745,19.448,19.436,55.0]
[1688348044712,21.75,19.448,19.439,21.76]
[1688348045394,21.75,19.448,19.438,21.761]
[1688348046715,21.75,19.448,19.439,20.0]
[1688348046901,21.75,19.448,19.441,21.757]
[1688348047096,21.75,19.448,19.442,55.0]
[1688348047316,21.75,19.448,19.443,21.755]
[1688348047508,21.749,19.449,19.444,55.0]
[1688348047706,21.749,19.449,19.445,21.753]
[1688348049931,166.96891939,19.456,19.445,21.753]
[1688348049932,21.748,19.45,19.445,21.753]
[1688348050230,55.977,19.455,19.445,21.753]
[1688348050405,55.977,19.455,19.446,55.0]
[1688348050602,21.746,19.452,19.447,21.75]
[1688348051206,21.744,19.453,19.447,21.75]
[1688348051502,255.0008165,19.486,19.447,21.75]
[1688348051503,55.946,19.465,19.448,75.0]
[1688348051807,20.0,19.469,19.453,21.744]
[1688348052122,77.677,19.465,19.456,21.74]
[1688348053106,189.59691939,19.465,19.452,21.744]
[1688348054923,21.736,19.461,19.452,21.744]
[1688348055229,21.736,19.461,19.453,21.743]
[1688348057523,21.736,19.461,19.454,55.0]
[1688348057729,21.736,19.461,19.456,21.741]
[1688348063126,21.735,19.462,19.456,21.741]
[1688348063530,21.733,19.463,19.456,21.741]
[1688348063832,77.748,19.468,19.456,77.713]
[1688348064030,102.034,19.474,19.457,55.0]
[1688348064217,102.034,19.474,19.461,77.689]
[1688348064218,21.726,19.47,19.461,77.689]
[1688348064414,20.0,19.469,19.461,77.689]
[1688348064617,20.0,19.469,19.461,21.734]
[1688348064618,21.728,19.468,19.461,21.734]
[1688348066227,21.728,19.468,19.458,55.963]
[1688348066228,77.665,19.468,19.458,21.738]
[1688348066537,77.665,19.468,19.452,55.982]
[1688348066831,77.665,19.468,19.453,55.0]
[1688348067725,21.728,19.468,19.457,21.74]
[1688348068029,21.728,19.468,19.461,21.735]
[1688348068835,77.665,19.468,19.458,55.0]
[1688348069133,77.665,19.468,19.457,55.0]
[1688348069620,21.728,19.468,19.461,21.735]
[1688348070632,102.045,19.472,19.462,55.0]
[1688348070633,21.723,19.472,19.462,55.0]
[1688348070931,21.722,19.473,19.465,21.731]
[1688348072914,77.645,19.473,19.463,21.733]
[1688348075529,77.645,19.473,19.464,55.0]
[1688348075530,21.722,19.473,19.464,55.0]
[1688348075835,21.722,19.473,19.466,21.729]
[1688348082733,21.722,19.473,19.464,21.731]
[1688348083435,21.722,19.473,19.463,21.733]
[1688348089236,21.722,19.473,19.453,10.83719922]
[1688348089237,21.722,19.473,19.461,21.734]
[1688348089420,77.663,19.469,19.459,21.737]
[1688348089618,20.0,19.468,19.459,21.737]
[1688348089843,21.73,19.466,19.459,21.737]
[1688348090337,21.73,19.466,19.458,21.738]
[1688348090552,20.0,19.468,19.458,21.738]
[1688348090846,20.0,19.471,19.458,123.855]
[1688348091137,75.942,19.471,19.458,123.855]
[1688348091527,75.942,19.471,19.458,21.738]
[1688348091727,21.728,19.468,19.458,21.738]
[1688348092121,20.0,19.471,19.458,179.821]
[1688348092322,111.86491939,19.476,19.45,110.28]
[1688348092323,102.025,19.476,19.465,21.731]
[1688348092539,55.915,19.476,19.465,21.731]
[1688348093723,21.722,19.473,19.465,21.731]
[1688348094438,21.722,19.473,19.464,21.732]
[1688348098280,21.85,19.478,19.464,77.681]
[1688348098549,20.0,19.499,19.472,179.685]
[1688348098550,90.8437,19.491,19.472,179.685]
[1688348098739,90.8437,19.491,19.478,21.716]
[1688348098740,21.704,19.49,19.478,21.716]
[1688348099140,77.578,19.49,19.47,77.989]
[1688348099339,77.578,19.49,19.474,21.72]
[1688348099947,21.706,19.488,19.474,21.72]
[1688348100451,90.8437,19.491,19.475,55.0]
[1688348100638,112.5457,19.491,19.479,21.714]
[1688348100842,112.5457,19.491,19.475,55.0]
[1688348100843,21.702,19.491,19.475,55.0]
[1688348101036,21.702,19.491,19.478,21.716]
[1688348102040,55.0,19.49,19.478,21.716]
[1688348102237,21.707,19.487,19.478,21.716]
[1688348103142,21.704,19.489,19.478,21.716]
[1688348103339,97.4799,19.494,19.479,55.0]
[1688348103340,21.703,19.491,19.479,55.0]
[1688348103553,21.703,19.491,19.482,21.711]
[1688348104230,97.4799,19.494,19.482,21.711]
[1688348104231,21.7,19.493,19.482,21.711]
[1688348104435,119.1789,19.494,19.486,21.707]
[1688348104736,21.699,19.494,19.486,21.707]
[1688348106243,21.699,19.494,19.48,22.06]
[1688348106547,21.697,19.496,19.485,21.708]
[1688348108652,21.697,19.496,19.473,103.48951502]
[1688348108863,75.0,19.495,19.473,55.921]
[1688348109160,21.705,19.489,19.477,21.717]
[1688348109766,21.705,19.489,19.475,30.0]
[1688348109935,21.705,19.489,19.474,21.721]
[1688348110136,112.7129,19.489,19.474,21.721]
[1688348110642,21.705,19.489,19.474,21.721]
[1688348111139,21.705,19.489,19.475,55.0]
[1688348111339,21.705,19.489,19.479,21.715]
[1688348114350,146.9219,19.494,19.479,21.715]
[1688348114538,21.702,19.491,19.479,21.715]
[1688348114738,20.0,19.49,19.479,21.715]
[1688348114950,21.707,19.487,19.479,21.715]
[1688348115833,20.0,19.49,19.479,77.621]
[1688348116039,21.702,19.494,19.479,77.621]
[1688348116239,91.7085,19.499,19.48,77.02]
[1688348116453,21.699,19.494,19.485,21.708]
[1688348116957,21.699,19.494,19.483,21.71]
[1688348117159,21.699,19.494,19.475,102.024]
[1688348117160,20.0,19.493,19.475,157.939]
[1688348117456,21.706,19.488,19.472,55.924]
[1688348117664,21.706,19.488,19.476,21.718]
[1688348117665,55.0,19.487,19.476,21.718]
[1688348117848,77.885,19.494,19.476,123.741]
[1688348118039,21.707,19.487,19.476,21.718]
[1688348119247,21.703,19.49,19.476,21.718]
[1688348120551,21.708,19.486,19.476,21.718]
[1688348121460,21.707,19.487,19.476,21.718]
[1688348121647,21.705,19.488,19.476,21.718]
[1688348122043,21.704,19.489,19.476,21.718]
[1688348122246,21.704,19.489,19.48,21.713]
[1688348124259,91.7085,19.491,19.48,21.713]
[1688348124463,20.0,19.49,19.48,21.713]
[1688348124758,21.705,19.489,19.48,21.713]
[1688348125280,20.0,19.49,19.48,21.713]
[1688348125561,20.0,19.49,19.48,43.733]
[1688348125747,20.0,19.493,19.48,43.733]
[1688348125951,21.703,19.49,19.48,21.713]
[1688348126264,77.577,19.49,19.47,286.3833902]
[1688348126445,77.577,19.49,19.476,21.718]
[1688348127645,77.577,19.49,19.475,21.719]
[1688348127846,77.577,19.49,19.47,69.82851502]
[1688348128052,77.599,19.485,19.473,21.721]
[1688348128551,21.709,19.485,19.473,21.721]
[1688348130668,55.878,19.489,19.478,21.716]
[1688348130880,92.9795,19.493,19.474,10.83719922]
[1688348131057,21.708,19.486,19.477,21.717]
[1688348134670,77.594,19.486,19.477,21.717]
[1688348134851,21.708,19.486,19.477,21.717]
[1688348135254,21.708,19.486,19.471,55.927]
[1688348135572,21.708,19.486,19.471,66.76419922]
[1688348136166,21.708,19.486,19.475,21.719]
[1688348138361,21.708,19.486,19.473,21.721]
[1688348138557,21.708,19.486,19.472,21.723]
[1688348138873,75.0,19.485,19.472,21.723]
[1688348139079,77.611,19.482,19.472,21.723]
[1688348139257,110.11,19.49,19.472,179.692]
[1688348139258,25.0822432,19.489,19.472,179.692]
[1688348139571,21.71,19.484,19.473,65.83719922]
[1688348139780,21.71,19.484,19.476,21.718]
[1688348140076,77.602,19.484,19.471,55.927]
[1688348140673,77.602,19.484,19.471,66.76419922]
[1688348141154,77.602,19.484,19.474,21.72]
[1688348142180,77.602,19.484,19.471,10.83719922]
[1688348142363,77.602,19.484,19.474,21.72]
[1688348143468,21.71,19.484,19.477,21.717]
[1688348143855,21.709,19.485,19.477,21.717]
[1688348145278,21.709,19.485,19.472,55.923]
[1688348145887,21.709,19.485,19.475,21.719]
[1688348146058,21.709,19.485,19.473,21.721]
[1688348147592,21.709,19.485,19.473,123.759]
[1688348148771,77.598,19.485,19.473,21.721]
[1688348151785,77.598,19.485,19.464,149.65351502]
[1688348152075,26.32197606,19.489,19.464,149.65351502]
[1688348152076,21.716,19.479,19.472,21.723]
[1688348152472,156.985,19.484,19.472,21.723]
[1688348153380,96.7651,19.483,19.472,21.723]
[1688348154085,21.715,19.479,19.472,21.723]
[1688348156187,21.715,19.479,19.47,21.724]
[1688348156385,21.715,19.479,19.465,30.0]
[1688348156578,21.715,19.479,19.47,21.725]
[1688348156783,21.715,19.479,19.465,30.0]
[1688348156784,21.715,19.479,19.469,21.726]
[1688348157175,21.715,19.479,19.468,21.727]
[1688348157989,55.0,19.478,19.467,21.728]
[1688348158289,77.638,19.475,19.461,55.955]
[1688348159194,179.728,19.468,19.457,21.74]
[1688348159373,179.728,19.468,19.456,21.741]
[1688348159575,145.719,19.467,19.452,55.982]
[1688348159770,21.734,19.463,19.455,21.742]
[1688348160087,21.734,19.463,19.448,94.4133]
[1688348160587,21.734,19.463,19.451,21.746]
[1688348162190,21.734,19.463,19.451,77.732]
[1688348162784,21.734,19.463,19.451,21.746]
[1688348163168,21.734,19.463,19.445,56.001]
[1688348163369,77.707,19.458,19.449,21.748]
[1688348163886,77.707,19.458,19.442,56.011]
[1688348164788,77.707,19.458,19.443,21.754]
[1688348165485,77.725,19.453,19.443,21.754]
[1688348168082,77.725,19.453,19.437,56.025]
[1688348168281,77.725,19.453,19.438,20.0]
[1688348169179,77.725,19.453,19.441,21.758]
[1688348169489,77.725,19.453,19.44,21.758]
[1688348169993,77.725,19.453,19.438,20.0]
[1688348170187,77.725,19.453,19.439,55.0]
[1688348170390,77.725,19.453,19.439,76.76]
[1688348170788,77.725,19.453,19.439,21.76]
[1688348170975,179.916,19.448,19.438,21.761]
[1688348171176,179.916,19.448,19.432,102.251]
[1688348171177,179.916,19.448,19.432,56.04]
[1688348171390,179.916,19.448,19.437,21.761]
[1688348171791,179.916,19.448,19.433,30.0]
[1688348172093,179.916,19.448,19.432,56.04]
[1688348172796,179.916,19.448,19.426,149.85351502]
[1688348172991,55.0,19.447,19.432,21.768]
[1688348173290,77.767,19.443,19.431,21.768]
[1688348176622,77.767,19.443,19.426,103.62451502]
[1688348176806,77.767,19.443,19.431,21.768]
[1688348177096,174.8929,19.443,19.431,21.768]
[1688348177308,21.76,19.439,19.431,21.768]
[1688348178605,20.0,19.438,19.423,56.064]
[1688348178778,77.801,19.434,19.42,56.075]
[1688348178985,77.801,19.434,19.423,21.778]
[1688348180491,55.0,19.433,19.423,21.778]
[1688348180802,21.768,19.433,19.423,21.778]
[1688348181898,21.768,19.433,19.426,21.774]
[1688348185307,21.768,19.433,19.425,21.775]
[1688348185604,21.768,19.433,19.423,21.778]
[1688348186903,21.768,19.433,19.415,47.56851502]
[1688348186904,21.768,19.433,19.42,21.781]
[1688348187990,21.768,19.433,19.42,77.857]
[1688348188307,21.768,19.433,19.424,21.776]
[1688348188483,21.768,19.433,19.422,21.779]
[1688348191406,21.768,19.433,19.426,21.774]
[1688348193614,21.768,19.433,19.421,111.072]
[1688348193993,21.768,19.433,19.424,21.776]
[1688348196418,97.1259,19.437,19.425,55.0]
[1688348196599,97.1259,19.437,19.428,77.823]
[1688348196910,21.76,19.439,19.428,77.823]
[1688348197112,41.761,19.438,19.428,77.823]
[1688348197693,21.76,19.439,19.428,77.823]
[1688348197896,21.76,19.439,19.432,21.768]
[1688348198703,21.759,19.44,19.432,21.768]
[1688348199012,21.756,19.443,19.437,21.762]
[1688348199612,55.997,19.448,19.437,21.762]
[1688348199910,77.753,19.448,19.437,21.762]
[1688348200118,21.754,19.445,19.437,21.762]
[1688348204518,21.754,19.445,19.438,55.0]
[1688348204695,21.754,19.445,19.439,21.76]
[1688348206305,117.09503794,19.449,19.439,21.76]
[1688348206306,402.3,19.469,19.44,22.05]
[1688348206507,21.738,19.459,19.447,77.748]
[1688348206700,21.738,19.459,19.447,21.75]
[1688348207017,77.701,19.459,19.447,21.75]
[1688348208719,20.0,19.458,19.447,21.75]
[1688348208909,21.742,19.455,19.447,21.75]
[1688348209104,20.0,19.458,19.447,21.75]
[1688348209105,21.74,19.457,19.448,55.0]
[1688348209409,21.74,19.457,19.45,21.747]
[1688348211202,20.0,19.458,19.45,21.747]
[1688348211402,21.739,19.458,19.45,21.747]
[1688348212112,21.739,19.458,19.445,56.001]
[1688348212414,21.739,19.458,19.448,21.749]
[1688348212415,77.705,19.458,19.448,21.749]
[1688348213521,21.739,19.458,19.448,21.749]
[1688348214506,21.738,19.459,19.452,21.745]
[1688348214822,41.739,19.458,19.452,21.745]
[1688348220513,41.739,19.458,19.451,21.746]
[1688348220713,41.739,19.458,19.452,21.745]
[1688348222034,41.739,19.458,19.444,102.187]
[1688348222035,41.739,19.458,19.449,21.749]
[1688348222719,41.739,19.458,19.444,56.004]
[1688348223025,41.739,19.458,19.448,21.75]
[1688348225328,41.739,19.458,19.441,56.013]
[1688348225638,41.739,19.458,19.444,21.754]
[1688348225639,77.722,19.454,19.444,21.754]
[1688348225819,21.747,19.451,19.444,21.754]
[1688348226025,21.745,19.452,19.444,21.754]
[1688348230940,75.0,19.451,19.444,21.754]
[1688348231140,21.749,19.449,19.444,21.754]
[1688348231326,20.0,19.448,19.444,21.754]
[1688348231526,41.75,19.448,19.444,21.754]
[1688348231847,41.75,19.448,19.443,21.755]
[1688348232227,20.0,19.448,19.443,21.755]
[1688348232425,21.746,19.452,19.443,21.755]
[1688348232426,20.0,19.451,19.443,21.755]
[1688348232657,41.747,19.451,19.443,21.755]
[1688348232846,41.747,19.451,19.442,21.756]
[1688348233441,20.0,19.451,19.442,21.756]
[1688348233639,20.0,19.455,19.442,21.756]
[1688348234158,20.0,19.455,19.443,55.0]
[1688348234357,21.743,19.454,19.446,21.751]
[1688348234639,21.747,19.451,19.446,21.751]
[1688348234835,41.748,19.45,19.446,21.751]
[1688348235022,41.748,19.45,19.443,55.0]
[1688348235220,41.748,19.45,19.445,21.752]
[1688348236337,41.748,19.45,19.442,55.0]
[1688348236529,41.748,19.45,19.438,56.022]
[1688348236733,41.748,19.45,19.439,55.0]
[1688348236936,41.748,19.45,19.443,21.755]
[1688348238732,41.748,19.45,19.439,55.0]
[1688348238932,41.748,19.45,19.438,55.0]
[1688348240156,41.748,19.45,19.441,21.757]
[1688348241943,41.748,19.45,19.44,21.759]
[1688348247148,41.748,19.45,19.439,21.759]
[1688348248336,41.748,19.45,19.429,122.266]
[1688348248646,21.754,19.445,19.436,21.762]
[1688348249837,21.754,19.445,19.433,55.0]
[1688348250051,21.754,19.445,19.435,21.764]
[1688348256144,21.754,19.445,19.43,22.25]
[1688348256344,21.754,19.445,19.434,21.765]
[1688348260062,21.754,19.445,19.435,55.0]
[1688348260254,21.754,19.445,19.434,21.764]
[1688348261167,55.0,19.444,19.434,21.764]
[1688348261346,21.758,19.441,19.434,21.764]
[1688348262565,183.6815125,19.447,19.434,77.799]
[1688348262754,21.757,19.442,19.434,21.764]
[1688348264162,21.755,19.444,19.434,21.764]
[1688348264363,21.755,19.444,19.435,55.0]
[1688348264567,21.755,19.444,19.437,21.761]
[1688348265165,25.5055125,19.447,19.437,77.788]
[1688348265355,21.754,19.444,19.437,21.761]
[1688348265550,21.754,19.444,19.436,21.763]
[1688348265763,21.754,19.444,19.435,21.764]
[1688348266559,21.754,19.444,19.434,21.765]
[1688348268953,55.0,19.443,19.425,196.56468268]
[1688348269158,21.761,19.438,19.429,21.771]
[1688348270066,21.761,19.438,19.425,56.059]
[1688348270067,21.761,19.438,19.428,21.772]
[1688348270665,21.761,19.438,19.426,21.774]
[1688348271480,55.0,19.437,19.425,21.775]
[1688348271672,77.803,19.434,19.425,21.775]
[1688348271877,77.803,19.434,19.424,21.776]
[1688348272079,77.803,19.434,19.422,21.778]
[1688348274967,55.0,19.433,19.422,21.778]
[1688348275180,21.77,19.43,19.422,21.778]
[1688348275379,21.77,19.43,19.411,116.69945221]
[1688348275380,20.0,19.429,19.411,56.099]
[1688348275680,20.0,19.429,19.415,21.786]
[1688348275681,21.777,19.424,19.415,21.786]
[1688348276261,21.777,19.424,19.414,21.788]
[1688348277176,21.777,19.424,19.413,21.789]
[1688348277378,21.777,19.424,19.414,55.0]
[1688348278968,21.777,19.424,19.409,56.105]
[1688348279169,21.777,19.424,19.403,56.122]
[1688348279368,21.777,19.424,19.4,22.12]
[1688348279369,75.0,19.423,19.405,21.798]
[1688348279582,180.196,19.418,19.402,30.0]
[1688348279777,180.196,19.418,19.402,21.801]
[1688348281263,202.316,19.418,19.402,21.801]
[1688348281464,55.0,19.417,19.402,21.801]
[1688348281663,180.242,19.413,19.402,21.801]
[1688348282777,77.887,19.413,19.402,21.801]
[1688348282989,77.887,19.413,19.403,55.0]
[1688348283173,77.887,19.413,19.403,76.8]
[1688348283479,77.887,19.413,19.403,21.8]
[1688348285280,77.887,19.413,19.402,21.801]
[1688348285880,77.887,19.413,19.363,473.22828807]
[1688348285881,20.0,19.412,19.395,56.146]
[1688348286185,20.0,19.412,19.397,21.807]